Cogmind - Beta 15 @@@ ROGUE MODE // 2025.07.23 @ 17:03:12 Player: jumpy Result: Destroyed by Y-45 Defender with Heavy Assault Rifle Performance ------------- Evolutions (1) 500 Regions Visited (2) 400 Robots Destroyed (36) 180 Value Destroyed (723) 723 Prototype IDs (0) 0 Alien Tech Used (0) 0 Bonus (0) 0 TOTAL SCORE: 1803 Bonus ------- None Cogmind --------- Core Integrity 0/400 Matter 34/300 Energy 265/265 System Corruption 0% Temperature Cool (0) Movement Walking (190) Ox1 Location -9/Materials Parts ------- > --- POWER (1) -------- Improved Ion Engine > --- PROPULSION (3) --- Aluminum Leg Aluminum Leg Armored Wheel > --- UTILITY (3) ------ Large Storage Unit Recoil Stabilizer > --- WEAPON (2) ------- High-powered Shotgun High-powered Shotgun > --- INVENTORY (15) --- Compact Wheel High-capacity Storage Unit Improved Terrain Scanner Seismic Detector High-powered Shotgun Grenade Launcher Mining Laser Peak State ------------ > --- POWER ------------ Improved Ion Engine > --- PROPULSION ------- Aluminum Leg Compact Wheel Armored Wheel > --- UTILITY ---------- Large Storage Unit Recoil Stabilizer > --- WEAPON ----------- High-powered Shotgun High-powered Shotgun > --- INVENTORY -------- Compact Wheel High-capacity Storage Unit Improved Terrain Scanner Seismic Detector High-powered Shotgun Grenade Launcher Mining Laser [Rating: 17] Favorites ----------- Power Light Ion Engine Engine Light Ion Engine Propulsion Aluminum Leg Leg Aluminum Leg Wheel Armored Wheel Utility Seismic Detector Device Seismic Detector Storage Large Storage Unit Weapon Assault Rifle Energy Gun Small Laser Ballistic Gun Assault Rifle Impact Weapon Mace Build | -11 -10 -9 ------- Run | Yrd Mat Mat Slots Evolved 2 | . . 2 Power . | . . . Propulsion 1 | . . 1 Utility 1 | . . 1 Weapon . | . . . Parts Attached 26 | 8 3 15 Power 4 | 1 . 3 Engine 4 | 1 . 3 Core . | . . . Reactor . | . . . Propulsion 7 | 2 . 5 Treads . | . . . Leg 5 | 2 . 3 Wheel 2 | . . 2 Hover . | . . . Flight . | . . . Utility 8 | 2 3 3 Device 4 | 1 1 2 Storage 4 | 1 2 1 Processor . | . . . Hackware . | . . . Protection . | . . . Artifact . | . . . Weapon 7 | 3 . 4 Energy Gun 1 | 1 . . Energy Cannon . | . . . Ballistic Gun 5 | 2 . 3 Ballistic Cannon . | . . . Launcher . | . . . Special Weapon . | . . . Impact Weapon 1 | . . 1 Slashing Weapon . | . . . Piercing Weapon . | . . . Special Melee Weapon . | . . . Unidentified Prototypes . | . . . Parts Lost 11 | . 2 9 Power 3 | . 1 2 Propulsion 3 | . . 3 Utility 3 | . 1 2 Weapon 2 | . . 2 Highest Loss Streak 5 | . 1 5 To Critical Strikes . | . . . Average Backups 6 | 4 7 6 Power . | . 1 . Propulsion 2 | 1 3 1 Utility 1 | . 1 2 Weapon 2 | 1 2 2 Tool/Special . | . . . Unused Backups 8 | 1 . 7 Power . | . . . Propulsion 1 | . . 1 Utility 4 | 1 . 3 Weapon 3 | . . 3 Tool/Special . | . . . Average Slot Usage (%) 84 | . 94 76 Engine 8 | . 11 7 Leg 22 | . 27 18 Wheel 7 | . . 12 Device 10 | . 13 8 Storage 12 | . 14 11 Ballistic Gun 17 | . 26 11 Impact Weapon 3 | . . 6 Peak Build Rating 17 | 8 8 17 Average Rating 8 | 6 7 10 On Entrance 4 | . 7 6 Naked Turns . | . . . Heaviest Build 48 | 13 48 34 Greatest Support 30 | 20 20 30 Greatest Overweight (x) 2 | . 2 2 Average Overweight (x) . | . 1 . Largest Inventory Capacity 20 | 8 20 15 Average Capacity 15 | 7 18 15 Most Carried 9 | 7 8 9 Average Carried 6 | 4 7 6 Final Capacity 15 | 8 15 15 Final Carried 8 | 7 8 7 Class Distribution -------------------- 100% | Mutant Dominant Class ---------------- Mutant | -10/Materials Mutant | -9/Materials Resources | -11 -10 -9 ----------- Run | Yrd Mat Mat Matter Collected 681 | 344 56 281 Remotely . | . . . Salvage Created 937 | 168 232 537 Parts 54 | 10 11 33 Haulers Intercepted 2 | . . 2 Recyclers Shooed . | . . . Parts Field Recycled . | . . . Retrieved Matter . | . . . Parts Self-Destructed . | . . . Prevented . | . . . Kills | -11 -10 -9 ------- Run | Yrd Mat Mat Combat Hostiles Destroyed 26 | . 7 19 Melee 3 | . . 3 Guns 18 | . 7 11 Classes Destroyed 8 | 2 2 4 Worker 1 | . . 1 Tunneler 4 | 4 . . Hauler 2 | . . 2 Recycler 1 | 1 . . Watcher 2 | . . 2 Swarmer 13 | . 2 11 Grunt 9 | . 5 4 Sentry 4 | . . 4 Best Kill Streak 9 | 2 2 9 Combat Bots Only 8 | . 2 8 Max Kills in Single Turn 2 | 1 1 2 Gunslinging . | . . . Exploded . | . . . Melee 1 | . . 1 Uniques/NPCs Destroyed . | . . . Combat | -11 -10 -9 -------- Run | Yrd Mat Mat Hostile Shots Fired 219 | . 52 167 Missed 54 | . 17 37 Hits 165 | . 35 130 Projectile 165 | . 35 130 Critical Strikes 2 | . . 2 Damage Taken 1721 | . 410 1311 Core 492 | . 85 407 Absorbed by Shields . | . . . Core Remaining (%) 83 | 100 66 . Volleys Fired 79 | 12 25 42 Largest 2 | 2 2 2 Hottest 50 | 40 40 50 Shots Fired 145 | 24 46 75 Gun 145 | 24 46 75 Cannon . | . . . Launcher . | . . . Special . | . . . Kinetic 145 | 24 46 75 Thermal . | . . . Explosive . | . . . Electromagnetic . | . . . Robot Hit Streak 8 | 8 7 7 Robot Miss Streak 11 | 3 2 11 Penetration Max . | . . . Secondary Targets 3 | . 2 1 Max Gunslinging Chain 1 | . 1 1 Shots Hit Robots 122 | 17 32 73 Core Hits 46 | 6 15 25 Critical Kills . | . . . Critical Parts Destroyed 3 | . . 3 Critical Strikes 3 | . . 3 Smash 3 | . . 3 Melee Attacks 23 | . . 23 Impact 23 | . . 23 Slashing . | . . . Piercing . | . . . Sneak Attacks 1 | . . 1 Combat Hostiles . | . . . Follow-up Attacks . | . . . Damage Inflicted 2153 | 222 395 1536 Guns 1532 | 222 395 915 Cannons . | . . . Explosions . | . . . Melee 621 | . . 621 Ramming . | . . . Kinetic 1532 | 222 395 915 Thermal . | . . . Explosive . | . . . Electromagnetic . | . . . Impact 621 | . . 621 Slashing . | . . . Piercing . | . . . Highest Corruption . | . . . Average Corruption . | . . . Corruption Purged . | . . . Corruption Blocked . | . . . Overload Shots . | . . . Overflow Damage 141 | . . 141 Projectiles . | . . . Explosions . | . . . Melee 141 | . . 141 Knockbacks 1 | . . 1 Impact 1 | . . 1 Kinetic . | . . . Secondary . | . . . Self-Inflicted Damage . | . . . Shots . | . . . Rammed . | . . . Targets Rammed . | . . . Kicked . | . . . Crushed . | . . . Highest Temperature 6 | . 3 6 Average Temperature 2 | . 2 3 Received Heat Transfer 393 | . 144 249 Siege Activations . | . . . Martial Activations . | . . . Shielding Activations . | . . . Robots Disrupted . | . . . Combat Hostiles . | . . . Robots Corrupted 5 | . . 5 Combat Hostiles 5 | . . 5 Parts Fried 6 | . . 6 Impact Corruptions 9 | . . 9 Robots Melted . | . . . Combat Hostiles . | . . . Parts Melted . | . . . Heat Transferred . | . . . Parts Sabotaged . | . . . Parts Stolen . | . . . Parts Stripped . | . . . Power Chain Reactions . | . . . Alert | -11 -10 -9 ------- Run | Yrd Mat Mat Maximum Alert Level 1 | . . 1 Low Security (%) 85 | 100 100 70 Level 1 14 | . . 29 Level 2 . | . . . Level 3 . | . . . Level 4 . | . . . Level 5 . | . . . High Security . | . . . Max Security . | . . . Peak Influence 343 | 10 120 343 Initial 9 | . . 9 Average 72 | 1 41 114 Influence Increases 866 | 25 200 641 Destroy 0b10 Robot/C 520 | . 140 380 Destroy 0b10 Robot/NC 50 | 25 . 25 Destroy Leader 118 | . 30 88 Successful Hack 27 | . . 27 Disable Machine 15 | . . 15 Destroy Structure 1 | . . 1 Lose Combat Pursuer 135 | . 30 105 Influence Decreases 523 | 25 176 322 Entered New Map 15 | . . 15 Time Decay 418 | 25 166 227 Lost Part 90 | . 10 80 Squads Dispatched 1 | . . 1 Investigation . | . . . Extermination . | . . . Reinforcement 1 | . . 1 Assault . | . . . Garrison . | . . . Intercept . | . . . Searches Triggered . | . . . Construction Impeded . | . . . Haulers Reinforced . | . . . Active Scanning Responses . | . . . Cargo Convoy Interrupts . | . . . Stealth | -11 -10 -9 --------- Run | Yrd Mat Mat Distress Signals 4 | . . 4 Communications Jammed . | . . . Distress Signals . | . . . Times Spotted 44 | . 14 30 Peak Tracking Total 7 | . 4 7 Tactical Retreats 6 | . 2 4 Traps | -11 -10 -9 ------- Run | Yrd Mat Mat Traps Triggered 1 | . 1 . Indirectly . | . . . Trap Hack Attempts . | . . . Triggered . | . . . Disarmed . | . . . Reprogrammed . | . . . Reused . | . . . Traps Extracted . | . . . Installed . | . . . Triggered . | . . . Machines | -11 -10 -9 ---------- Run | Yrd Mat Mat Machines Disabled 1 | . . 1 Max in Single Turn 1 | . . 1 Machines Repaired . | . . . Machines Dismantled . | . . . Machines Sabotaged . | . . . Overloaded Fab Kills . | . . . Hacking | -11 -10 -9 --------- Run | Yrd Mat Mat Machines Accessed 7 | . 1 6 Terminals 7 | . 1 6 Fabricators . | . . . Repair Stations . | . . . Recycling Units . | . . . Scanalyzers . | . . . Garrison Access . | . . . Total Hacks 16 | . 3 13 Successful 7 | . . 7 Failed 9 | . 3 6 Catastrophic 1 | . 1 . Database Lockouts . | . . . Manual 16 | . 3 13 Terminals 16 | . 3 13 Fabricators . | . . . Repair Stations . | . . . Recycling Units . | . . . Scanalyzers . | . . . Garrison Access . | . . . Terminal Hacks . | . . . Fabricator Hacks . | . . . Repair Station Hacks . | . . . Recycling Unit Hacks . | . . . Scanalyzer . | . . . Garrison Access Hacks . | . . . Unauthorized Hacks 7 | . . 7 Terminals 7 | . . 7 Botnet 2 | . . 2 Skim 5 | . . 5 Fabricators . | . . . Repair Stations . | . . . Recycling Units . | . . . Scanalyzers . | . . . Garrison Access . | . . . Data Cores Recovered . | . . . Used . | . . . Hacking Detections 2 | . 1 1 Full Trace Events . | . . . Feedback Events . | . . . Feedback Blocked . | . . . Robot Schematics Acquired . | . . . Robots Built . | . . . Authchips . | . . . Time . | . . . Total Robot Build Rating . | . . . Part Schematics Acquired . | . . . Parts Built . | . . . Authchips . | . . . Time . | . . . Total Part Build Rating . | . . . Parts Repaired . | . . . Time . | . . . Parts Recycled . | . . . Recycled Matter . | . . . Retrieved Matter . | . . . Retrieved Components . | . . . Parts Scanalyzed . | . . . Part Schematics Acquired . | . . . Parts Damaged . | . . . Bothacking | -11 -10 -9 ------------ Run | Yrd Mat Mat Used RIF Installer . | . . . Robots Hacked . | . . . Non-combat . | . . . Combat . | . . . Robot Hacks Applied . | . . . Relay Couplers Released . | . . . Fabnet Peak Effective % . | . . . Robots Rewired . | . . . Allies Hacked . | . . . Hacks Repelled . | . . . Allies | -11 -10 -9 -------- Run | Yrd Mat Mat Total Allies . | . . . Largest Group . | . . . Highest-Rated Group . | . . . Highest-Rated Ally . | . . . Total Orders . | . . . Ally Attacks . | . . . Total Damage . | . . . Kills . | . . . Allies Corrupted . | . . . Allies Melted . | . . . Intel | -11 -10 -9 ------- Run | Yrd Mat Mat Active Infowar (turns) 1057 | 130 509 418 Seismic 1057 | 130 509 418 Robot Analysis Total . | . . . Derelict Logs Recovered . | . . . Drone Launches . | . . . Drone Recoveries . | . . . Exploration | -11 -10 -9 ------------- Run | Yrd Mat Mat Turns Passed 1498 | 214 527 757 Spaces Moved 778 | 134 194 450 Core 5 | 5 . . Treads . | . . . Legs 523 | 129 194 200 Wheels 250 | . . 250 Hover . | . . . Flight . | . . . Fastest Speed 50 | 50 120 95 Average Speed 142 | 117 223 115 Slowest Speed 260 | 120 260 260 Overloaded Moves . | . . . Propulsion Burnouts . | . . . Robots Hopped . | . . . Potential Cave-ins . | . . . Cave-ins Triggered . | . . . Exploration Rate (%) 33 | 6 49 44 Regions Visited 2 Branch Regions . Pre-discovered Areas . | . . . Known Exits Taken . | . . . Unknown Exits Taken 2 | 1 1 . Scrap Searched . | . . . Spaces Dug . | . . . Terrain Destroyed . | . . . Melee . | . . . Projectile . | . . . AOE . | . . . Terrain Rammed . | . . . Walls Destroyed . | . . . Machines Disabled . | . . . Actions | -11 -10 -9 --------- Run | Yrd Mat Mat Total 973 | 163 241 569 Wait 41 | . 13 28 Move 776 | 133 193 450 Hop . | . . . Pick Up 16 | 9 3 4 Fast Attach 18 | 6 2 10 Attach 8 | 1 1 6 Detach 1 | . . 1 Swap 4 | 1 2 1 Drop 7 | 1 2 4 Fire 79 | 12 25 42 Melee 23 | . . 23 Ram . | . . . Kick . | . . . Crush . | . . . Escape Stasis . | . . . Rewire . | . . . Trap . | . . . Miscellaneous . | . . . Route ------- -11/Scrapyard -10/Materials (discovered 2 exits: *Mat / [*Min]) -9/Materials (discovered 1 exit: [*Min]) History --------- Turn | Location | Event 3 | -11/Scrapyard | Discovered new exit (range 16) 215 | -11/Scrapyard | Entered Materials 314 | -10/Materials | Build established: Mutant 584 | -10/Materials | Discovered new exit (range 12) 708 | -10/Materials | Discovered new exit (range 16) 742 | -10/Materials | Entered another Materials area 742 | -9/Materials | Evolved 2 slots: Propulsion x1, Utility x1 1019 | -9/Materials | Lost 5 parts (1p3n1w) 1070 | -9/Materials | Discovered new exit (range 16) 1198 | -9/Materials | Core integrity fell below 50% 1309 | -9/Materials | Core integrity fell below 20% 1341 | -9/Materials | Destroyed 8 combat bots 1499 | -9/Materials | Destroyed by Y-45 Defender with Heavy Assault Rifle Last Messages --------------- >>Trojan(Skim) Trojan loaded successfully. Testing... Terminal linked with 2 systems. Please expand to 2 more systems! 01398_ G-34 Mercenary destroyed. 01401_ Acquired 30 matter. 01404_ Dropped Com. Wheel. 01405_ Acquired Com. Wheel. 01412_ Dropped Com. Wheel. 01420_ A-02 Transporter destroyed. 01431_ Acquired 29 matter. 01453_ W-16 Scout sends out distress signal. 01463_ Connecting with Terminal... >>Trojan(Skim) Trojan loaded successfully. Testing... Terminal linked with 3 systems. Please expand to 1 more system! 01497_ Y-45 Defender destroyed. Map ----- +----------------------------------------------------+ | ??????? #?###########?#[#???? """ # | | ?????????##### #?# #?#*#???? """ # | | ?????????????# #?# #?#%#????? """ # | | ?????????????# ### """"""" ###%##??? # | | ???????####### # """""""=##=!%## # | | ?+ + """""""%+* %!+% ?? | | ????????###### # """""""!##===##????#+#?? | | ?????????????## ####+#### """"""" ###=##?????# #?? | | ??????????????# ## # #?#[######## ### | | ??????????????#]##"" ###########?# = ! | | ??????????????#=##"T #?????????#####+###### | | ???????######?#=##"" % ##?????????# ## | | ???????# # ## #??????????# = ## ! | | ???????# """ #=## #??????????# =! ##! | | ???????#! """ +]#########??????????# ! ##### | | ???????# """ #]#??????????????????###########???? | | ???????# ??# #????????????????????????????????? | | ???????# ????# #???????###########??????????????? | | ???????#??????# #???????# #??????????????? | | ??????????????# #???????# #??????????????? | | ??????????????# #???????# ???????????????? | | ????????????### ###?????# ????????????????? | | ??????####### #?????# """"?????????????????? | | T #######! """""????????????????? | | "" !;%[ """"" #??????????????? | | #######@ Y #??????????????? | | ####### #?????#####+#####??????????????? | | ????????###+###??????????????????????????????? | | ?#???????????????????????????????????????????????? | | ?????????????????????????????????????????????????? | | ?????????????????????????????????????????????????? | | ?????????????????????????????????????????????????? | | ?????????????????????????????????????????????????? | | ?????????????????????????????????????????????????? | | ?????????????????????????????????????????????????? | | | | | | | | | | | | | | | | | | | | | | | | | | | | | | | +----------------------------------------------------+ Best States ------------- Heat Dissipation 28 Energy Generation 12 Energy Capacity 265 Matter Stores 300 Matter Capacity 300 Sight Range 16 Terrain Scan Density 10 Evasion (%) 55 Recoil Reduction 4 Item Schematics ----------------- None Robot Schematics ------------------ None Fabricated ------------ Nothing Repaired ---------- Nothing Alien Tech Used ----------------- None Achievements -------------- None Challenges ------------ None Game ------ Seed DisposableClaymoresBeam Manual? 0 Play Time 00:12:33 Cumulative 185.6 hours Start 2025.07.23 @ 16:51:34 End 2025.07.23 @ 17:03:12 Sessions 1 Manual Loads 0 Difficulty Rogue Special Mode None Game No. 447 Rogue 447 Adventurer 0 Explorer 0 Win Type - Total 8 Types 6/0/1/1/0/0/0/0/0/0 Lore% 74 Gallery% 65 Achievement% 51 Wizard Run 0 Options --------- Layout 0 ASCII 0 Keyboard 0 Movement Numpad Keybinds 0 Fullscreen 2 Font 18/Terminus Map View 76x50 Zoom Use 0% Tactical HUD 1 Map Filters NONE Filters SATURATION(100) Steam 1 RUN: af547ab1-f5d8-4ec0-9b44-fc0d47b29f99